bitfinex-derivatives/quotes_ETHF0:USTF0_20250804
["timestamp","ask_amount","ask_price","bid_price","bid_amount"]
[1754273521418,1.0363,3529.1,3529.0,4.25187]
[1754273522008,3.2078,3529.4,3529.3,0.5125]
[1754273522309,2.65967745,3530.5,3529.6,4.25177]
[1754273522310,2.8062,3529.7,3529.6,4.25177]
[1754273522507,2.2326,3529.7,3529.6,4.25177]
[1754273523108,3.2261,3530.0,3529.9,0.56652]
[1754273523311,2.8108,3530.0,3529.9,4.25172]
[1754273523906,3.37731,3530.0,3529.9,3.6852]
[1754273524109,3.6143,3530.0,3529.9,3.6852]
[1754273525915,3.6143,3530.0,3529.9,2.9024]
[1754273526116,3.6143,3530.0,3529.9,2.3476]
[1754273526518,3.6143,3530.0,3529.9,2.9024]
[1754273526908,3.6143,3530.0,3529.9,3.6852]
[1754273532528,2.2326,3530.0,3529.9,3.6852]
[1754273532928,0.5125,3530.0,3529.9,3.6852]
[1754273533127,0.5125,3530.2,3530.1,3.6852]
[1754273533326,4.28675,3530.4,3530.3,3.6852]
[1754273533621,40.802,3531.4,3530.3,3.6852]
[1754273533622,3.2078,3530.8,3530.7,4.25159]
[1754273533923,3.2078,3530.8,3530.7,0.9158]
[1754273534128,3.5333,3530.5,3530.4,2.8124]
[1754273534325,0.4989,3530.5,3530.4,0.9145]
[1754273534526,5.3704,3530.8,3530.7,3.6301]
[1754273535025,5.9733,3530.8,3530.7,3.6301]
[1754273535225,6.7411,3530.8,3530.7,3.6301]
[1754273535424,3.5333,3530.8,3530.7,2.8124]
[1754273535728,3.5333,3530.5,3530.4,0.9145]
[1754273536324,3.5333,3530.5,3530.4,1.7311]
[1754273536529,3.5333,3530.5,3530.4,2.2921]
[1754273538228,3.5333,3530.5,3530.4,2.8124]
[1754273538530,1.0165,3530.5,3530.4,2.00124]
[1754273538828,2.1626,3530.5,3530.4,2.00124]
[1754273539029,2.7655,3530.5,3530.4,4.19654]
[1754273539229,3.5333,3530.5,3530.4,4.19654]
[1754273542132,3.5333,3530.5,3530.4,23.88354]
[1754273542434,2.1626,3530.5,3530.4,23.88354]
[1754273543329,3.5333,3530.8,3530.7,4.19649]
[1754273544026,2.1626,3530.8,3530.7,3.37879]
[1754273544226,3.5333,3530.8,3530.7,4.19649]
[1754273544634,3.5333,3530.8,3530.7,3.6301]
[1754273545433,2.1626,3530.8,3530.7,3.6301]
[1754273546832,3.5333,3530.8,3530.7,3.6301]
[1754273547135,4.09968,3530.8,3530.7,2.2921]
[1754273547632,3.5333,3530.7,3530.6,1.0734]
[1754273547831,3.5333,3530.7,3530.6,2.2975]
[1754273548032,3.5333,3530.7,3530.6,2.8585]
[1754273548229,3.5333,3530.7,3530.6,3.3788]
[1754273548436,3.5333,3530.7,3530.6,4.1965]
[1754273549430,1.4206,3531.0,3530.9,3.37875]
[1754273549632,4.9663,3531.2,3531.1,4.19643]
[1754273550036,5.3704,3531.2,3531.1,4.19643]
[1754273550237,6.7411,3531.2,3531.1,4.19643]
[1754273550535,6.7411,3531.2,3531.1,3.6301]
[1754273552138,6.7411,3531.2,3531.1,2.8124]
[1754273552933,6.7411,3531.2,3531.1,3.6301]
[1754273553835,3.2078,3531.6,3531.4,1.07328]
[1754273554137,0.7678,3531.8,3531.6,2.00105]
[1754273554138,1.0165,3531.7,3531.6,2.00105]
[1754273554439,1.4989,3532.0,3531.9,4.1963]
[1754273554641,1.0,3532.0,3531.9,4.1963]
[1754273554834,1.0,3532.0,3531.9,7.19710213]
[1754273555237,1.0,3532.0,3531.9,25.46230213]
[1754273555437,1.0,3532.0,3531.9,26.27890213]
[1754273556235,1.0,3532.0,3531.9,26.29690213]
[1754273557248,1.0,3532.0,3531.9,6.63090213]
[1754273557442,1.0,3532.0,3531.9,26.29190213]
[1754273558438,1.0,3532.0,3531.9,26.28590213]
[1754273559447,1.0,3532.0,3531.9,26.28190213]
[1754273560143,0.1262,3532.0,3531.9,26.28190213]
[1754273560734,2.8917,3532.0,3531.9,26.28190213]
[1754273560939,3.6595,3532.0,3531.9,6.63090213]
[1754273561139,3.6595,3532.0,3531.9,21.9361]
[1754273561339,3.6595,3532.0,3531.9,5.29290213]
[1754273561544,0.1262,3532.0,3531.9,24.93690213]
[1754273562048,1.3671,3532.0,3531.9,5.29290213]
[1754273562242,3.6595,3532.0,3531.9,20.5585]
[1754273562442,3.6595,3532.0,3531.9,21.9361]
[1754273562841,1.3671,3532.0,3531.9,24.93690213]
[1754273563049,2.2888,3532.0,3531.9,24.93690213]
[1754273563347,3.6595,3532.0,3531.9,24.93690213]
[1754273564551,3.6595,3532.0,3531.9,20.5575]
[1754273564945,1.5468,3532.0,3531.9,19.642]
[1754273565150,1.5468,3532.0,3531.4,4.69087]
[1754273565151,1.4051,3531.5,3531.4,4.69087]
[1754273565348,1.4051,3531.5,3531.4,24.33287]
[1754273565552,3.4686,3531.5,3531.4,23.7666]
[1754273567450,3.4686,3531.5,3531.4,24.5128]
[1754273567750,3.4686,3531.5,3531.4,25.0896]
[1754273568245,3.4686,3531.5,3531.4,3.2078]
[1754273568753,1.97138,3531.4,3531.3,19.641]
[1754273568955,4.03488,3531.4,3531.3,19.641]
[1754273569554,3.4686,3531.4,3531.3,20.18]
[1754273569753,3.4686,3531.4,3531.3,20.5578]
[1754273570446,3.4686,3531.2,3530.9,0.56635]
[1754273570666,3.2078,3531.6,3530.9,1.48315]
[1754273570667,3.4686,3531.0,3530.9,1.48315]
[1754273570846,3.4686,3531.0,3530.9,21.12515]
[1754273571154,3.4686,3530.9,3530.8,3.2078]
[1754273571544,3.4686,3530.9,3530.3,3.00080213]
[1754273571545,3.4686,3530.9,3530.3,3.2078]
[1754273571741,2.8853,3530.5,3530.4,21.12423]
[1754273572052,3.4686,3530.5,3530.4,21.87043]
[1754273572247,3.4686,3530.5,3530.4,21.8808]
[1754273572450,3.4686,3530.5,3530.4,2.2398]
[1754273572650,3.4686,3530.5,3530.4,1.663]
[1754273572850,3.4686,3530.5,3530.4,20.5588]
[1754273573249,3.4686,3530.5,3530.4,21.8818]
[1754273576849,0.7373,3530.9,3530.8,2.2398]
[1754273577057,0.7373,3530.9,3530.8,21.8828]
[1754273577451,3.725,3531.1,3531.0,0.9168]
[1754273577656,4.2479,3531.1,3531.0,21.8828]
[1754273577852,5.9391,3531.1,3531.0,21.8828]
[1754273578159,6.6764,3531.1,3531.0,21.8828]
[1754273578453,3.4686,3530.8,3530.7,2.2398]
[1754273578659,3.4686,3530.8,3530.7,25.45098213]
[1754273578854,5.9391,3531.1,3531.0,0.56634]
[1754273579157,5.9391,3531.1,3531.0,2.80614]
[1754273579556,6.6764,3531.1,3531.0,2.80614]
[1754273580054,6.6764,3531.1,3531.0,2.2398]
[1754273580245,0.5172,3530.4,3530.3,3.954]
[1754273580449,3.4686,3530.4,3530.3,21.307]
[1754273580850,3.4686,3530.4,3530.3,21.8838]
[1754273581555,3.4686,3530.2,3530.1,43.77080213]
[1754273581765,3.4686,3530.2,3530.1,64.73780213]
[1754273586557,3.4686,3530.2,3530.1,42.093]
[1754273586760,3.4686,3530.2,3530.1,60.414]
[1754273586956,0.56652,3530.0,3529.8,1.323]
[1754273587152,3.4686,3529.9,3529.8,2.2398]
[1754273587358,3.4686,3529.9,3529.8,25.0916]
[1754273590262,3.4686,3529.9,3529.8,5.4476]
[1754273590462,3.4686,3529.9,3529.8,25.0926]
[1754273595465,3.4686,3529.9,3529.8,5.4476]
[1754273595666,3.4686,3529.9,3529.8,25.0926]
[1754273598262,3.4686,3529.9,3529.8,5.4476]
[1754273598461,3.4686,3529.9,3529.8,25.0916]
[1754273599464,3.2078,3530.6,3530.3,0.9022]
[1754273599465,3.27016,3530.4,3530.3,0.9022]
[1754273599767,3.27016,3530.4,3530.3,24.89010213]
[1754273599968,4.06466,3530.4,3530.3,24.89010213]
[1754273601165,3.4982,3530.4,3530.3,24.89010213]
[1754273601567,2.1704,3530.4,3530.3,24.89010213]
[1754273602365,1.3254,3530.4,3530.3,24.89010213]
[1754273604961,3.4982,3530.4,3530.3,24.89010213]
[1754273606868,3.2078,3530.6,3530.4,0.56644]
[1754273607060,3.2078,3530.6,3530.5,21.8853]
[1754273607261,4.5332,3530.6,3530.5,21.8853]
[1754273607468,6.706,3530.6,3530.5,21.8853]
[1754273608063,3.4982,3530.5,3530.4,2.2443]
[1754273608368,3.4982,3530.5,3530.4,21.8843]
[1754273610470,3.4982,3530.5,3530.4,2.2443]
[1754273610677,3.4982,3530.5,3530.4,21.8843]
[1754273613772,3.4982,3530.5,3530.4,21.8823]
[1754273614071,4.5837,3531.0,3530.9,1.07676]
[1754273614280,0.5309,3531.0,3530.9,5.81146213]
[1754273614774,1.3254,3531.0,3530.9,5.81146213]
[1754273615277,6.51919,3531.4,3531.3,2.2443]
[1754273615473,3.4982,3531.4,3531.0,3.79330213]
[1754273615665,1.94222,3531.2,3531.1,20.5392]
[1754273616270,1.3759,3531.2,3530.8,1.3421]
[1754273616575,1.41567,3531.6,3530.6,0.9022]
[1754273616576,1.8111,3530.7,3530.6,0.9022]
[1754273616775,2.1704,3530.7,3530.6,20.5392]
[1754273616969,3.2078,3531.3,3530.3,3.2078]
[1754273617277,3.4982,3530.7,3530.6,2.2443]
[1754273617471,1.3759,3530.4,3530.3,4.11]
[1754273617672,3.4982,3530.4,3530.3,25.65456]
[1754273618075,3.4982,3530.4,3530.3,25.0881]
[1754273618977,2.1704,3530.4,3530.3,25.0881]
[1754273619567,3.4982,3530.4,3530.3,25.0881]
[1754273623677,3.4982,3530.4,3530.3,3.2078]
[1754273623976,3.4982,3530.4,3530.3,22.8418]
[1754273624171,3.4982,3530.4,3530.3,3.2078]
[1754273624377,3.4982,3530.4,3530.3,22.8418]
[1754273624778,3.4982,3530.4,3530.3,3.2078]
[1754273624973,3.92186,3530.3,3530.2,19.634]
[1754273626087,3.3554,3530.3,3530.2,21.0781]
[1754273626276,3.3554,3530.3,3530.2,24.81000213]
[1754273627083,2.66358,3530.8,3530.7,0.8756]
[1754273627379,3.92178,3530.8,3530.7,2.1752]
[1754273629779,1.3643,3530.8,3530.7,0.8756]
[1754273629976,1.3643,3530.8,3530.7,2.1752]
[1754273630476,3.3554,3530.8,3530.7,2.1752]
[1754273632083,0.7329,3531.1,3531.0,0.56633]
[1754273632285,2.8107,3531.1,3531.0,3.87640213]
[1754273632483,3.3554,3531.1,3531.0,3.87640213]
[1754273632687,3.3554,3531.1,3531.0,5.17600213]
[1754273633882,3.3554,3531.1,3531.0,2.1752]
[1754273635682,0.56633,3531.2,3531.0,2.1752]
[1754273635882,2.0972,3531.1,3531.0,0.8756]
[1754273636083,1.43485,3531.0,3530.9,0.8756]
[1754273636481,1.93065,3531.0,3530.9,20.1233]
[1754273636679,3.92178,3530.8,3530.7,2.1752]
[1754273636883,3.3554,3530.8,3530.7,21.8052]
[1754273637086,4.62357,3531.3,3531.0,0.56634]
[1754273637087,1.2287,3531.1,3531.0,0.56634]
[1754273637389,1.7155,3531.1,3531.0,3.87640213]
[1754273637584,3.3554,3531.1,3531.0,3.87640213]
[1754273637785,3.3554,3531.1,3531.0,5.17600213]
[1754273639485,0.7329,3531.1,3531.0,5.17600213]
[1754273639791,3.2078,3531.3,3531.2,2.1752]
[1754273639792,3.9407,3531.3,3531.2,2.1752]
[1754273640185,0.7329,3531.3,3531.2,2.1752]
[1754273640893,0.7329,3531.3,3531.1,0.56633]
[1754273640894,0.7329,3531.5,3531.4,0.3823]
[1754273641188,0.7329,3531.5,3531.4,5.74228213]
[1754273641781,3.2078,3531.9,3531.6,0.56625]
[1754273641989,3.3554,3531.8,3531.7,0.8756]
[1754273642486,0.1262,3532.0,3531.9,0.8756]
[1754273642691,0.1262,3532.0,3531.9,21.8022]
[1754273643387,0.8591,3532.0,3531.9,21.8022]
[1754273644891,1.8417,3532.0,3531.9,21.8022]
[1754273645591,0.1262,3532.0,3531.9,21.8022]
[1754273648396,0.7329,3532.5,3531.9,21.8022]
[1754273648397,0.7329,3532.5,3532.4,2.74132]
[1754273648695,0.7329,3532.5,3532.4,25.36412213]
[1754273649292,0.5447,3532.8,3532.7,2.1752]
[1754273649293,2.6225,3532.8,3532.7,2.1752]
[1754273649591,2.6225,3532.8,3532.7,21.7972]
[1754273649795,3.3554,3532.8,3532.7,21.7972]
[1754273649989,1.00721209,3534.3,3532.8,1.41514]
[1754273650297,2.82881546,3534.2,3534.1,5.94883]
[1754273650596,2.82881546,3534.2,3534.1,25.56883]
[1754273651393,2.82881546,3534.2,3534.1,28.56963213]
[1754273652196,3.3554,3534.2,3534.1,28.56963213]
[1754273653496,1.3643,3534.5,3534.4,0.8756]
[1754273653797,3.3554,3534.5,3534.4,24.07890213]
[1754273654002,3.3554,3534.5,3534.4,24.64469213]
[1754273654296,3.3554,3534.5,3534.4,23.51040213]
[1754273654497,3.3554,3534.5,3534.4,22.63480213]
[1754273655293,3.4295,3534.2,3534.1,3.2078]
[1754273655494,3.4295,3534.2,3534.1,22.8258]
[1754273657704,3.4295,3533.2,3532.8,3.7535]
[1754273657996,3.4295,3533.0,3532.9,21.8027]
[1754273658602,3.4295,3533.0,3532.9,1.607]
[1754273658806,1.399,3532.8,3532.7,2.1527]
[1754273659002,2.7051,3532.8,3532.7,23.051]
[1754273659199,0.566,3533.2,3532.8,3.46936]
[1754273659403,0.4838,3532.9,3532.8,7.22286]
[1754273659598,0.4838,3532.9,3532.8,26.3018]
[1754273659804,0.4838,3532.9,3532.8,23.5885]
[1754273660004,0.4838,3532.9,3532.8,23.5865]
[1754273660210,0.4838,3532.9,3532.8,3.2078]
[1754273660504,0.4838,3532.9,3532.8,5.8676]
[1754273661200,1.2356,3532.9,3532.8,5.8676]
[1754273661398,1.2356,3532.9,3532.8,6.6568]
[1754273663007,1.2356,3532.9,3532.8,3.9435]
[1754273663211,1.2356,3532.9,3532.8,0.7357]
[1754273663407,3.77384,3533.0,3532.2,5.8676]
[1754273663408,1.2356,3532.3,3532.2,5.8676]
[1754273663607,1.2356,3532.3,3532.2,26.88396]
[1754273664005,1.80174,3532.3,3532.2,26.3178]
[1754273664211,1.2356,3532.3,3532.2,25.0215]
[1754273664411,1.2356,3532.3,3532.2,25.5286]
[1754273664614,1.2356,3532.3,3532.2,26.3178]
[1754273666410,1.2356,3532.3,3532.2,26.88395]
[1754273666712,1.80174,3532.3,3532.2,24.4758]
[1754273666906,1.80174,3532.3,3532.2,3.2078]
[1754273667108,1.4152,3532.7,3532.0,0.7357]
[1754273667109,1.04997,3532.1,3532.0,0.7357]
[1754273667305,1.80177,3532.1,3532.0,0.7357]
[1754273667504,1.80177,3532.1,3531.7,3.7535]
[1754273667505,1.80182,3531.8,3531.7,3.9435]
[1754273669219,1.80182,3531.8,3531.7,3.2078]
[1754273669405,0.56627,3531.5,3531.4,0.7357]
[1754273669718,1.80197,3530.9,3530.8,6.6568]
[1754273669905,1.80197,3530.9,3530.8,4.8148]
[1754273670111,1.80197,3530.9,3530.8,3.9435]
[1754273671522,1.80197,3530.9,3530.8,4.8148]
[1754273671716,1.80197,3530.9,3530.8,6.6568]
[1754273672206,1.2356,3530.9,3530.8,6.6568]
[1754273677124,1.2356,3530.9,3530.8,5.3605]
[1754273677325,1.2356,3530.9,3530.8,5.8676]
[1754273677824,1.2356,3530.9,3530.8,6.6568]
[1754273678022,1.2356,3530.9,3530.8,0.7357]
[1754273678321,1.80203,3530.5,3530.4,5.3605]
[1754273678630,1.80203,3530.5,3530.4,5.8676]
[1754273678813,1.80203,3530.5,3530.4,6.6568]
[1754273679018,1.80203,3530.5,3530.4,5.3605]
[1754273679217,1.80203,3530.5,3530.4,6.6568]
[1754273680726,1.80203,3530.5,3530.4,3.449]
[1754273687425,1.0344,3531.1,3531.0,2.1005]
[1754273687620,1.8415,3531.1,3531.0,3.6132]
[1754273688019,1.8415,3531.1,3530.8,3.2078]
[1754273688020,0.56635,3531.0,3530.8,3.2078]
[1754273688226,2.3561,3530.9,3530.8,0.7708]
[1754273688425,1.3217,3530.9,3530.5,1.7709]
[1754273688738,1.0344,3530.3,3530.2,4.1218]
[1754273689034,7.62444326,3531.0,3530.2,4.1218]
[1754273689035,0.56645,3530.4,3530.2,6.821]
[1754273689328,0.56645,3530.4,3530.3,3.6132]
[1754273689631,1.08335,3530.4,3530.3,3.6132]
[1754273690126,1.89045,3530.4,3530.3,3.6132]
[1754273690323,2.40795,3530.4,3530.3,3.6132]
[1754273692524,1.89045,3530.4,3530.3,3.6132]
[1754273692724,0.56645,3530.4,3530.3,3.6132]
[1754273693121,1.08335,3530.4,3530.3,3.6132]
[1754273693832,0.56645,3530.4,3530.3,3.6132]
[1754273697541,0.56644,3530.5,3530.4,2.1535]
[1754273697731,0.56644,3530.5,3530.4,6.61393326]
[1754273698839,1.89044,3530.5,3530.4,3.6132]
[1754273699039,2.40794,3530.5,3530.4,3.6132]
[1754273700243,2.40794,3530.5,3530.4,1.6848]
[1754273700436,2.92254,3530.5,3530.4,1.6848]
[1754273700739,2.92254,3530.5,3530.4,3.0675]
[1754273700941,2.40794,3530.5,3530.4,3.6132]
[1754273702843,2.92254,3530.5,3530.4,3.6132]
[1754273703545,2.40794,3530.5,3530.4,1.159]
[1754273703744,2.92254,3530.5,3530.4,1.159]
[1754273704445,2.92254,3530.5,3530.4,1.6848]
[1754273704739,1.60086,3530.3,3530.2,3.2078]
[1754273704933,0.8071,3530.5,3529.9,3.00073326]
[1754273705134,0.56646,3530.4,3530.2,9.05093326]
[1754273705340,0.56646,3530.4,3530.3,3.6132]
[1754273705842,5.63092209,3531.0,3530.9,3.6132]
[1754273705843,1.00721209,3531.0,3530.9,3.6132]
[1754273706146,1.00721209,3531.8,3531.3,4.1795]
[1754273706342,0.91304009,3531.7,3531.6,2.2437]
[1754273706549,0.91304009,3531.7,3531.6,23.2512]
[1754273706747,0.56617,3532.2,3532.1,1.4597]
[1754273707041,0.56622,3531.8,3531.7,0.784]
[1754273707246,2.10282,3531.8,3531.7,1.2966]
[1754273707446,2.35881332,3531.8,3531.7,2.8292]
[1754273707648,2.35881332,3531.8,3531.7,3.6132]
[1754273707848,2.40772,3531.8,3531.7,3.6132]
[1754273709046,0.56622,3531.8,3531.4,0.56628]
[1754273709348,2.40779,3531.4,3531.3,4.6675]
[1754273709541,0.56626,3531.6,3531.3,4.6675]
[1754273709737,2.40767,3532.1,3532.0,0.914]
[1754273709943,3.16531319,3532.1,3532.0,2.8292]
[1754273710343,3.16531319,3532.1,3532.0,3.6132]
[1754273710539,2.40767,3532.1,3532.0,3.6132]
[1754273710746,1.89028,3531.5,3531.4,3.6132]
[1754273711149,0.56628,3531.5,3531.4,3.6132]
[1754273711447,0.56626,3531.6,3531.5,1.5548]
[1754273711645,0.56626,3531.6,3531.5,3.6132]
[1754273712550,1.89026,3531.6,3531.5,3.6132]
[1754273716849,0.5169,3531.6,3531.5,3.6132]
[1754273717149,0.56624,3531.7,3531.6,3.6226]
[1754273717550,1.39272,3531.9,3531.8,1.4986]
[1754273717751,1.39272,3531.9,3531.8,3.6226]
[1754273718152,0.56622,3531.9,3531.8,3.6226]
[1754273718352,0.5662,3532.0,3531.9,3.6226]
[1754273718752,0.56618,3532.1,3532.0,3.6226]
[1754273718948,1.39266,3532.2,3532.1,2.1108]
[1754273719255,1.92716,3532.2,3532.1,3.6226]
[1754273719441,0.5345,3532.2,3532.1,3.6226]
[1754273719647,0.56613,3532.4,3532.1,2.06477]
[1754273719844,1.92713,3532.4,3532.3,3.6226]
[1754273720049,1.0498,3532.1,3531.7,0.753]
[1754273720254,1.8763,3531.8,3531.7,3.6226]
[1754273720656,1.361,3531.8,3531.7,3.6226]
[1754273720851,0.5345,3531.8,3531.7,3.6226]
[1754273721050,1.361,3531.8,3531.7,3.6226]
[1754273721956,1.8763,3531.8,3531.7,3.6226]
[1754273724357,1.8763,3531.8,3531.7,1.6984]
[1754273724358,2.3837,3531.8,3531.7,1.6984]
[1754273724759,1.8763,3531.8,3531.7,2.818]
[1754273724957,1.8763,3531.8,3531.7,3.6226]
[1754273725351,0.8265,3532.4,3532.2,1.4986]
[1754273725554,1.92715,3532.3,3532.2,3.0562]
[1754273725762,2.44245,3532.3,3532.2,3.0562]
[1754273726056,2.44245,3532.3,3532.2,3.6226]
[1754273727253,1.8763,3532.3,3532.2,3.6226]
[1754273727651,0.56613,3532.4,3532.2,1.4986]
[1754273727846,0.8265,3532.7,3532.3,3.6226]
[1754273728052,1.0498,3532.5,3532.4,3.6226]
[1754273728250,1.8763,3532.5,3532.4,3.6226]
[1754273728650,2.44236,3532.8,3532.7,1.4986]
[1754273728960,2.94976,3532.8,3532.7,2.818]
[1754273729157,2.94976,3532.8,3532.7,2.2648]
[1754273730658,1.0498,3532.0,3531.9,4.7196]
[1754273730856,1.8763,3532.0,3531.9,6.0774]
[1754273731259,1.8763,3532.0,3531.9,6.8304]
[1754273732658,1.8763,3532.0,3531.9,3.6226]
[1754273733556,1.8763,3532.0,3531.9,4.1888]
[1754273733957,1.8763,3532.0,3531.9,3.6226]
[1754273735258,2.44249,3532.0,3531.9,3.6226]
[1754273736162,1.8763,3532.0,3531.9,3.6226]
[1754273737666,1.90804,3531.7,3531.6,2.2648]
[1754273737859,1.8763,3531.7,3531.6,2.2648]
[1754273738859,1.8763,3531.7,3531.6,2.818]
[1754273739069,1.8763,3531.7,3531.6,3.6226]
[1754273740969,1.1007,3532.0,3531.9,1.4986]
[1754273741163,2.4425,3532.0,3531.9,3.6226]
[1754273741871,1.8763,3532.0,3531.9,3.6226]
[1754273742169,2.44243,3532.4,3532.3,3.6226]
[1754273742465,3.2043496,3532.4,3532.3,3.6226]
[1754273743471,2.44243,3532.4,3532.3,3.6226]
[1754273744368,1.8148,3532.5,3532.4,3.6026]
[1754273744765,1.00721209,3533.3,3532.6,0.7846]
[1754273744967,1.00721209,3533.3,3533.1,2.8269]
[1754273744968,0.91830866,3533.2,3533.1,2.8269]
[1754273745165,0.76227117,3533.2,3533.1,3.6026]
[1754273745469,0.4951,3533.3,3533.2,3.6026]
[1754273745766,0.7979,3533.5,3533.4,1.4663]
[1754273745964,0.7979,3533.5,3533.4,3.6026]
[1754273746361,1.293,3533.5,3533.4,3.6026]
[1754273746571,1.8148,3533.5,3533.4,3.6026]
[1754273747669,1.8148,3533.5,3533.4,2.8269]
[1754273748271,1.8148,3533.5,3533.4,3.6026]
[1754273750568,0.4788,3534.1,3533.4,3.6026]
[1754273750773,0.56588,3533.9,3533.8,3.6026]
[1754273750969,1.06098,3533.9,3533.8,3.6026]
[1754273751476,0.56588,3534.0,3533.9,3.6026]
[1754273751679,2.38068,3534.0,3533.9,3.6026]
[1754273752975,0.56585,3534.2,3534.1,0.5173]
[1754273753276,2.38065,3534.2,3534.1,2.8269]
[1754273753474,1.8148,3534.2,3534.1,2.8269]
[1754273753667,1.8148,3534.2,3534.1,3.6026]
[1754273754072,1.8148,3534.2,3534.1,2.8269]
[1754273755471,1.8148,3534.2,3534.1,3.6026]
[1754273756782,1.8148,3534.2,3534.1,2.2509]
[1754273756982,1.8148,3534.2,3534.1,3.6026]
[1754273758280,3.7736,3534.5,3534.3,2.1363]
[1754273758487,3.7736,3534.5,3534.4,3.6026]
[1754273758488,4.7905,3534.5,3534.4,3.6026]
[1754273759087,5.5884,3534.5,3534.4,3.6026]
[1754273759275,5.5884,3534.5,3534.4,2.8269]
[1754273759782,2.3806,3534.5,3534.4,3.6026]
[1754273760687,2.38065,3534.1,3534.0,6.8104]
[1754273760984,0.56582,3534.3,3534.2,3.6026]
[1754273761786,0.56581,3534.4,3534.2,1.4663]
[1754273762086,1.293,3534.4,3534.3,3.6026]
[1754273762287,1.8148,3534.4,3534.3,3.6026]
[1754273762882,0.5658,3534.5,3534.3,2.8269]
[1754273763085,2.3806,3534.5,3534.4,3.6026]
[1754273763784,0.4951,3534.6,3534.5,2.1363]
[1754273763978,1.293,3534.6,3534.5,3.6026]
[1754273765484,0.4951,3534.6,3534.5,3.6026]
[1754273765989,1.8148,3534.6,3534.5,3.6026]
[1754273766885,1.8148,3534.1,3534.0,1.4663]
[1754273767182,1.8148,3534.1,3534.0,2.818]
[1754273767586,1.8148,3534.1,3534.0,3.6026]
[1754273769194,0.56593,3533.6,3533.5,3.9924]
[1754273769487,0.56593,3533.6,3533.5,6.8104]
[1754273769488,1.8148,3533.6,3533.5,6.8104]
[1754273769689,1.8148,3533.6,3533.5,6.0347]
[1754273770288,2.2936,3533.6,3533.5,6.0347]
[1754273770792,1.8148,3533.6,3533.5,6.0347]
[1754273770994,1.8148,3533.6,3533.5,6.8104]
[1754273772786,0.4951,3533.7,3533.6,1.3272]
[1754273772983,1.8148,3533.7,3533.6,3.6026]
[1754273773195,1.8148,3533.7,3533.5,3.2078]
[1754273773196,0.56587,3534.0,3533.9,1.8445]
[1754273773495,2.38067,3534.0,3533.9,3.6026]
[1754273773695,2.85947,3534.0,3533.9,2.8269]
[1754273774089,0.7364,3533.7,3533.6,1.3853]
[1754273774291,0.7364,3533.9,3533.8,1.3814]
[1754273774486,1.2564,3533.9,3533.8,3.509]
[1754273774791,0.52,3533.9,3533.8,3.509]
[1754273774999,0.52,3534.3,3534.2,3.1204]
[1754273775292,1.2564,3534.3,3534.2,3.509]
[1754273775990,1.7794,3534.3,3534.2,3.509]
[1754273776390,1.2564,3534.3,3534.2,3.509]
[1754273776790,1.7794,3534.3,3534.2,3.509]
[1754273779291,1.7794,3534.3,3533.9,3.77367]
[1754273779292,1.08586,3534.1,3533.9,3.2078]
[1754273779496,2.2282,3534.0,3533.9,4.0109]
[1754273779694,1.7794,3534.0,3533.9,1.6904]
[1754273779891,1.7794,3534.0,3533.9,2.7667]
[1754273780894,2.2282,3534.0,3533.9,1.6904]
[1754273781192,2.2282,3534.0,3533.9,0.8031]
[1754273781492,0.523,3533.8,3533.7,0.4987]
[1754273781699,2.79411,3533.8,3533.7,0.4987]
[1754273781897,2.79411,3533.8,3533.7,0.3886]
[1754273782087,2.79411,3533.8,3533.7,1.6904]
[1754273782292,1.7794,3533.8,3533.7,2.7667]
[1754273782489,1.7794,3533.8,3533.7,3.509]
[1754273783297,0.7364,3534.3,3533.7,2.7059]
[1754273783502,0.7364,3534.3,3533.2,4.4091787]
[1754273783503,1.2564,3534.3,3534.2,3.509]
[1754273783690,1.27668542,3534.3,3534.2,3.509]
[1754273784005,1.2564,3534.6,3534.5,3.509]
[1754273784296,2.16805091,3534.6,3534.5,3.509]
[1754273784491,0.91165091,3534.6,3534.5,4.07479]
[1754273784697,1.7794,3534.9,3534.8,1.3814]
[1754273784896,2.69108232,3534.9,3534.8,3.509]
[1754273785197,0.75673604,3534.9,3534.8,10.2767487]
[1754273785395,1.00721209,3535.2,3534.8,10.2767487]
[1754273785396,1.00721209,3535.2,3535.0,0.56571]
[1754273785598,4.71861814,3535.7,3535.6,1.94701]
[1754273785904,3.36274487,3535.7,3535.6,4.07461]
[1754273786198,0.15494487,3535.7,3535.6,4.07461]
[1754273786601,0.56553,3536.1,3535.6,4.07461]
[1754273786802,2.89895495,3536.0,3535.9,1.3814]
[1754273786998,2.7441,3536.0,3535.9,3.509]
[1754273787602,3.4792,3535.7,3535.6,2.1845]
[1754273787902,3.4792,3535.7,3535.6,3.509]
[1754273788694,1.043,3535.4,3535.3,0.4987]
[1754273788900,1.4219,3535.5,3535.4,1.3814]
[1754273789201,2.7441,3535.5,3535.4,1.3814]
[1754273789400,2.7441,3535.5,3535.4,3.509]
[1754273789798,0.5656,3535.7,3535.4,3.509]
[1754273790096,0.5656,3535.7,3535.2,3.2078]
[1754273790097,0.5656,3535.7,3535.6,1.3814]
[1754273790297,0.5656,3535.7,3535.6,3.509]
[1754273790896,1.30192,3536.2,3535.9,2.7667]
[1754273791095,2.0077,3536.1,3536.0,3.509]
[1754273791298,3.30962,3536.2,3536.1,3.509]
[1754273791497,3.2078,3536.7,3536.2,2.1276]